bitfinex/quotes_ETHUSD_20250430
["timestamp","ask_amount","ask_price","bid_price","bid_amount"]
[1746031947285,3.0,1771.6,1771.5,5.64493367]
[1746031947448,0.56444003,1771.7,1771.4,5.64511485]
[1746031947648,9.20879239,1771.7,1771.5,0.13728327]
[1746031947872,0.92087924,1771.6,1771.5,0.13728327]
[1746031948084,0.92087924,1771.6,1771.3,5.6454249]
[1746031948389,0.92087924,1771.6,1771.3,5.64543264]
[1746031948577,0.92087924,1771.6,1771.4,0.13672342]
[1746031949052,0.92087924,1771.6,1771.4,5.78185609]
[1746031949386,3.56444003,1771.7,1771.5,5.64485755]
[1746031949585,6.09,1771.8,1771.6,5.64445828]
[1746031949753,6.09,1771.8,1771.5,5.64474206]
[1746031949954,11.73399515,1771.8,1771.6,0.13672342]
[1746031950153,1.17339952,1771.7,1771.4,5.64503901]
[1746031950450,1.17339952,1771.7,1771.5,0.13672342]
[1746031950792,1.17339952,1771.7,1771.6,5.64461503]
[1746031950973,6.09,1771.8,1771.6,12.05156017]
[1746031951145,6.09,1771.8,1771.6,6.40694514]
[1746031951350,6.09,1771.8,1771.7,0.13672342]
[1746031951550,6.699,1771.8,1771.6,6.40694514]
[1746031951780,6.699,1771.8,1771.7,0.13672342]
[1746031952395,6.699,1771.8,1771.6,6.40694224]
[1746031952579,6.699,1771.8,1771.7,0.13672342]
[1746031952983,6.699,1771.8,1771.6,6.40694224]
[1746031953148,6.699,1771.8,1771.7,0.13672342]
[1746031953350,6.699,1771.8,1771.6,6.40694224]
[1746031953551,6.09,1771.8,1771.7,0.13672342]
[1746031953776,6.09,1771.8,1771.6,12.05133782]
[1746031953975,6.09,1771.8,1771.7,0.13672342]
[1746031954186,6.09,1771.8,1771.6,12.05133782]
[1746031954391,7.45816797,1772.0,1771.7,5.78101985]
[1746031954686,0.7458168,1771.9,1771.7,5.78101985]
[1746031956086,0.7458168,1771.9,1771.7,0.13672342]
[1746031956305,3.7582,1771.8,1771.7,0.13672342]
[1746031956508,5.64466758,1771.6,1771.3,5.64556845]
[1746031956675,5.64466758,1771.6,1771.4,0.14014117]
[1746031956972,0.56446676,1771.5,1771.4,0.14014117]
[1746031959007,9.20940043,1771.5,1771.4,0.14014117]
[1746031959198,10.07506726,1771.5,1771.4,0.14014117]
[1746031959504,5.64555206,1771.4,1771.0,5.64636907]
[1746031959713,5.64559002,1771.3,1771.0,5.64636907]
[1746031959927,0.564559,1771.3,1771.0,5.64630557]
[1746031960110,16.51565095,1771.5,1771.2,5.64588979]
[1746031960405,10.44956676,1771.5,1771.2,5.64588979]
[1746031960912,9.65446676,1771.5,1771.3,6.57576823]
[1746031961320,15.29946462,1771.5,1771.3,0.13796075]
[1746031961488,1.52994646,1771.4,1771.1,12.08284598]
[1746031961824,1.52994646,1771.4,1771.2,5.78535368]
[1746031962386,1.52994646,1771.4,1771.2,0.13948604]
[1746031964699,7.1752791,1771.4,1771.2,0.13948604]
[1746031964899,1.52994646,1771.4,1771.2,0.13948604]
[1746031966237,7.17522653,1771.4,1771.2,0.13948604]
[1746031966544,0.71752265,1771.3,1771.2,0.13948604]
[1746031967139,8.64557104,1771.3,1771.2,0.13948604]
[1746031967323,5.64625368,1771.1,1770.7,6.41516062]
[1746031967503,5.64625368,1771.1,1770.8,0.12911078]
[1746031967704,5.64589736,1771.2,1770.9,5.64684208]
[1746031967903,0.56458974,1771.1,1770.8,5.64694067]
[1746031968103,0.56458974,1771.1,1770.9,0.13051291]
[1746031968298,0.56458974,1771.1,1770.8,5.64694067]
[1746031968527,0.56458974,1771.1,1770.9,0.13051291]
[1746031968842,0.56458974,1771.1,1770.8,5.64694067]
[1746031969305,0.56458974,1771.1,1770.9,0.13051291]
[1746031969507,0.56458974,1771.1,1770.8,5.64694067]
[1746031969703,0.56458974,1771.1,1770.9,0.13051291]
[1746031969928,0.56458974,1771.1,1770.8,5.64694067]
[1746031970129,0.56458974,1771.1,1770.9,0.13051291]
[1746031970328,0.56458974,1771.1,1770.8,5.64694067]
[1746031970517,0.56458974,1771.1,1770.9,0.13051291]
[1746031970717,0.56458974,1771.1,1770.8,5.64694067]
[1746031970917,0.56458974,1771.1,1770.9,5.77726564]
[1746031971348,0.56458974,1771.1,1770.9,0.13051291]
[1746031971553,0.56458974,1771.1,1770.8,5.64694058]
[1746031971917,0.56458974,1771.1,1770.9,0.13051291]
[1746031972117,6.2108229,1771.1,1770.8,5.64694058]
[1746031972318,0.62108229,1771.0,1770.9,0.13051291]
[1746031972639,0.62108229,1771.0,1770.8,5.64694058]
[1746031972847,0.62108229,1771.0,1770.9,0.13051291]
[1746031973222,6.26780298,1771.0,1770.7,0.7679]
[1746031973421,0.6267803,1770.9,1770.7,5.64746922]
[1746031973831,0.6267803,1770.9,1770.7,11.29473664]
[1746031974152,5.64628386,1771.1,1770.8,5.64701273]
[1746031974153,0.8231,1771.1,1770.8,5.64701273]
[1746031974343,0.8231,1771.1,1770.8,5.64697431]
[1746031974868,0.8231,1771.1,1770.7,5.64731069]
[1746031975031,6.46945105,1771.1,1770.8,5.64710178]
[1746031975350,0.64694511,1771.0,1770.7,11.29455378]
[1746031975551,3.64694511,1771.0,1770.8,0.13075679]
[1746031975849,6.46124115,1770.6,1770.2,11.29773739]
[1746031976022,0.64612412,1770.5,1770.3,5.64866246]
[1746031976440,0.8133,1770.6,1770.5,5.64812199]
[1746031976646,3.0,1770.7,1770.4,5.64828421]
[1746031977921,5.64792351,1770.6,1770.1,0.8115]
[1746031978219,3.0,1770.5,1770.1,6.46067446]
[1746031978449,0.3,1770.4,1770.2,5.64906545]
[1746031978834,5.94864855,1770.4,1770.0,5.64959564]
[1746031979035,5.94864855,1770.4,1770.0,5.64952677]
[1746031979036,0.3,1770.4,1770.0,5.64952677]
[1746031979249,0.3,1770.4,1770.1,5.64921013]
[1746031979977,0.3,1770.4,1770.1,11.29844242]
[1746031980257,5.94857364,1770.4,1770.0,5.64951487]
[1746031980462,9.24365042,1770.3,1770.0,5.64951487]
[1746031981028,9.24365042,1770.3,1769.9,5.64989763]
[1746031981029,0.8055,1770.2,1769.9,5.64989763]
[1746031981234,6.09,1770.3,1770.2,5.6490792]
[1746031981434,0.8055,1770.8,1770.5,11.29600858]
[1746031981645,1.52162879,1770.8,1770.5,5.64792498]
[1746031981847,4.52162879,1770.8,1770.5,5.64792498]
[1746031982073,4.52162879,1770.8,1770.5,11.29583405]
[1746031982257,1.52162879,1770.8,1770.6,5.64775846]
[1746031982460,4.52162879,1770.8,1770.5,5.64809558]
[1746031982662,4.52162879,1770.8,1770.5,5.64796097]
[1746031982973,6.09982116,1770.7,1770.3,5.64857741]
[1746031983168,0.45216288,1770.7,1770.4,5.64823241]
[1746031983748,6.0996837,1770.7,1770.3,5.64858744]
[1746031983957,6.0996837,1770.7,1770.3,11.29713963]
[1746031984273,0.60996837,1770.6,1770.3,11.29713797]
[1746031984477,0.60996837,1770.6,1770.3,5.64856146]
[1746031984653,0.60996837,1770.6,1770.3,11.29708914]
[1746031984851,0.60996837,1770.6,1770.3,5.64852768]
[1746031985061,0.60996837,1770.6,1770.3,11.29708565]
[1746031985239,0.60996837,1770.6,1770.3,5.64852762]
[1746031985575,0.60996837,1770.6,1770.4,5.64823509]
[1746031985869,0.60996837,1770.6,1770.3,5.64856401]
[1746031986049,0.60996837,1770.6,1770.2,0.7732]
[1746031986050,0.60996837,1770.6,1770.4,5.648157]
[1746031986599,3.0,1770.7,1770.5,5.64794202]
[1746031987007,0.71612879,1770.8,1770.2,6.42223638]
[1746031987180,0.71612879,1770.8,1770.6,5.64766523]
[1746031987181,3.0,1770.8,1770.6,5.64766523]
[1746031987526,3.0,1770.8,1770.5,11.29584545]
[1746031987682,3.0,1770.8,1770.3,0.7644]
[1746031987683,3.0,1770.8,1770.6,5.64769533]
[1746031988002,6.09,1770.9,1770.7,5.64748404]
[1746031988181,7.6440622,1770.9,1770.7,5.64748404]
[1746031988378,7.6440622,1770.9,1770.7,5.64726786]
[1746031988579,9.09,1770.9,1770.8,5.64716512]
[1746031988883,6.45202993,1771.2,1770.8,5.64696973]
[1746031989097,3.0,1771.1,1770.8,5.64696973]
[1746031989283,3.0,1771.1,1770.8,5.64694229]
[1746031989606,0.806,1771.2,1770.9,11.29340934]
[1746031989805,6.09,1771.3,1771.1,5.64618176]
[1746031989989,6.09,1771.3,1771.1,5.6459862]
[1746031990603,6.09,1771.3,1771.2,5.75980741]
[1746031990907,3.8151,1771.4,1771.2,0.11391762]
[1746031991103,0.38151,1771.3,1771.2,0.11391762]
[1746031991767,3.8151,1771.4,1771.2,0.11391762]
[1746031994008,9.46050638,1771.4,1771.2,0.11391762]
[1746031994305,9.46050638,1771.4,1771.1,5.64620517]
[1746031994484,9.46050638,1771.4,1771.3,0.11391762]
[1746031994685,9.46050638,1771.4,1771.1,5.64620517]
[1746031994869,10.97106977,1771.4,1771.3,0.11391762]
[1746031995072,10.97106977,1771.4,1771.1,5.64620517]
[1746031995304,10.97106977,1771.4,1771.3,0.11391762]
[1746031995484,10.97106977,1771.4,1771.1,5.64620517]
[1746031995685,10.97106977,1771.4,1771.3,0.11391762]
[1746031995985,5.64572233,1771.3,1770.9,6.47893382]
[1746031996311,0.56457223,1771.2,1770.9,6.47893382]
[1746031996605,0.56457223,1771.2,1770.9,6.47892334]
[1746031996805,0.56457223,1771.2,1771.0,5.64646942]
[1746031997409,0.56457223,1771.2,1770.9,5.64668671]
[1746031997585,0.56457223,1771.2,1770.8,5.64698662]
[1746031997792,6.21062213,1771.2,1770.8,5.64698662]
[1746031998283,11.85678498,1771.2,1770.8,5.64698662]
[1746031998483,6.21062213,1771.2,1770.8,5.64698662]
[1746031998917,5.64646945,1771.1,1770.8,5.64709747]
[1746031999212,5.64646945,1771.1,1770.5,7.94810942]
[1746031999213,5.64708196,1770.9,1770.5,6.43365644]
[1746031999414,6.42296001,1771.0,1770.6,5.64763425]
[1746031999790,6.42296001,1771.0,1770.6,5.64759362]
[1746031999998,3.7763,1771.0,1770.6,5.64759362]
[1746032000311,3.7763,1771.0,1770.7,5.64732179]
[1746032000312,0.37763,1770.9,1770.7,5.64732179]
[1746032000515,3.0,1771.0,1770.8,5.64693771]
[1746032000816,3.0,1770.9,1770.6,5.64770353]
[1746032001529,5.71788059,1770.8,1770.5,0.7857]
[1746032001815,6.21944859,1770.7,1770.4,5.64831636]
[1746032002309,0.57178806,1770.7,1770.5,5.64798838]
[1746032002640,6.45534738,1770.9,1770.6,5.647803]
[1746032002974,6.45534738,1770.9,1770.5,5.64798838]
[1746032003179,6.45534738,1770.9,1770.5,11.29590885]
[1746032003375,6.45534738,1770.9,1770.5,11.29581462]
[1746032003576,6.45534738,1770.9,1770.5,5.64789415]
[1746032003815,0.64553474,1770.8,1770.5,5.64789415]
[1746032004112,14.7367321,1771.0,1770.7,5.64748404]
[1746032004414,14.7367321,1771.0,1770.6,6.46880185]
[1746032004617,5.6470023,1770.9,1770.5,5.64795472]
[1746032004814,0.56470023,1770.8,1770.5,5.64795472]
[1746032004986,0.56470023,1770.8,1770.5,5.64791583]
[1746032005400,6.21199359,1770.8,1770.4,6.42494572]
[1746032005595,6.21199359,1770.8,1770.5,0.11592851]
[1746032005923,6.21199359,1770.8,1770.5,5.76400334]
[1746032006127,7.01059359,1770.8,1770.5,0.11592851]
[1746032006625,6.34871534,1770.7,1770.5,0.11592851]
[1746032008028,5.647803,1770.6,1770.5,0.11592851]
[1746032008230,5.647803,1770.6,1770.3,5.64875722]
[1746032008529,6.47322199,1770.5,1770.4,0.11592851]
[1746032008728,9.47322199,1770.5,1770.4,0.11592851]
[1746032009021,10.98532449,1770.5,1770.1,5.64919045]
[1746032009225,3.0,1770.5,1770.3,6.42674937]
[1746032009401,3.0,1770.5,1770.3,6.42655416]
[1746032009597,3.0,1770.5,1770.4,0.11757412]
[1746032009998,8.64812199,1770.5,1770.4,0.11757412]
[1746032010232,10.07771761,1770.5,1770.1,6.42723155]
[1746032010531,5.64876009,1770.3,1770.2,0.11769603]
[1746032010691,3.0,1770.3,1770.2,0.11769603]
[1746032010895,13.16787218,1770.5,1770.1,0.8046]
[1746032010896,18.81624168,1770.5,1770.1,0.8046]
[1746032011199,3.0,1770.4,1770.2,0.11769603]
[1746032011397,3.0,1770.4,1770.1,12.10310613]
[1746032011596,3.0,1770.4,1770.2,0.11842759]
[1746032011819,3.0,1770.4,1770.1,6.45380735]
[1746032012024,3.0,1770.4,1770.2,0.11842759]
[1746032012238,3.0,1770.4,1770.1,6.45381509]
[1746032012407,3.0,1770.4,1770.3,0.11842759]
[1746032012616,3.0,1770.4,1770.1,6.4537874]
[1746032012818,8.64851557,1770.4,1770.2,0.11842759]
[1746032013151,14.29719677,1770.4,1770.0,5.64961759]
[1746032013459,10.68723525,1770.4,1770.1,5.76760824]
[1746032013615,10.68723525,1770.4,1770.1,0.11830566]
[1746032014520,16.33593483,1770.4,1770.1,0.11830566]
[1746032014846,10.68723525,1770.4,1770.1,0.11830566]
[1746032015346,5.03871968,1770.4,1770.1,5.76759957]
[1746032015639,3.0,1770.4,1770.2,6.45047625]
[1746032016045,3.0,1770.4,1770.3,0.12074394]
[1746032016557,8.64844103,1770.4,1770.3,0.12074394]
[1746032017045,8.64844103,1770.4,1770.0,6.44525264]
[1746032017339,8.64844103,1770.4,1770.3,0.12043911]
[1746032017543,5.64881869,1770.3,1770.0,0.7957]
[1746032017750,5.64939833,1770.1,1769.8,0.7957]
[1746032017930,5.64939833,1770.1,1769.8,6.44600054]
[1746032018330,5.64939833,1770.1,1769.8,0.7957]
[1746032018953,6.44794326,1770.2,1769.8,0.7957]
[1746032019150,6.29442263,1770.1,1769.8,0.7957]
[1746032019555,0.64479433,1770.1,1769.8,6.44596718]
[1746032020153,0.64479433,1770.1,1769.8,12.09616725]
[1746032020355,0.64479433,1770.1,1769.8,6.44590007]
[1746032020860,0.64479433,1770.1,1769.9,5.77035937]
[1746032021755,0.64479433,1770.1,1769.9,0.12043911]
[1746032022122,0.64479433,1770.1,1769.8,6.44590007]
[1746032022319,0.64479433,1770.1,1770.0,0.12171953]
[1746032022525,0.64479433,1770.1,1769.9,5.64995814]
[1746032022825,0.64479433,1770.1,1770.0,0.12171953]
[1746032023058,0.64479433,1770.1,1769.8,12.09601574]
[1746032023366,0.64479433,1770.1,1770.0,0.12171953]
[1746032023575,0.64479433,1770.1,1769.8,6.44585525]
[1746032023738,0.64479433,1770.1,1770.0,0.12171953]
[1746032023922,0.64479433,1770.1,1769.8,12.09603374]
[1746032024129,0.64479433,1770.1,1770.0,0.12171953]
[1746032024361,0.64479433,1770.1,1769.8,6.44585525]
[1746032024545,0.64479433,1770.1,1770.0,0.12171953]
[1746032025070,0.64479433,1770.1,1769.8,5.65015525]
[1746032025227,0.64479433,1770.1,1770.0,0.12171953]
[1746032025426,0.64479433,1770.1,1769.8,11.30029529]
[1746032025681,0.64479433,1770.1,1769.9,0.12171953]
[1746032026123,0.64479433,1770.1,1769.8,5.65014117]
[1746032026328,0.64479433,1770.1,1770.0,0.12171953]
[1746032026640,0.64479433,1770.1,1769.9,5.65000408]
[1746032026965,0.64479433,1770.1,1770.0,0.12287803]
[1746032027528,0.64479433,1770.1,1770.0,5.77259554]
[1746032027932,0.64479433,1770.1,1770.0,0.12287803]
[1746032031735,3.0,1770.2,1770.0,5.77259554]
[1746032031936,3.0,1770.2,1770.0,5.7724007]
[1746032032355,8.64922529,1770.2,1770.0,0.12287803]
[1746032032559,8.64922529,1770.2,1769.9,5.64989617]
[1746032032869,3.0,1770.2,1770.0,5.77260916]
[1746032033071,3.8648886,1770.2,1770.0,0.12306098]
[1746032033471,3.8648886,1770.2,1770.0,5.77275951]
[1746032033670,5.64858719,1770.4,1770.1,0.7802]
[1746032033973,3.0,1770.4,1770.1,0.7802]
[1746032034165,8.64860678,1770.4,1770.0,5.64954498]
[1746032034367,6.42606009,1770.3,1770.2,0.12306098]
[1746032034546,7.93372385,1770.3,1769.9,12.06741176]
[1746032034747,7.93372385,1770.3,1770.2,0.12306098]
[1746032034946,2.28476669,1770.3,1770.0,11.29919862]
[1746032035165,2.28476669,1770.3,1770.2,0.12306098]
[1746032035351,2.28476669,1770.3,1770.0,5.64948837]
[1746032035556,7.93355582,1770.3,1770.0,5.64948837]
[1746032035752,7.93355582,1770.3,1770.1,0.12306098]
[1746032035941,0.79335558,1770.2,1770.1,0.12306098]
[1746032036144,3.79335558,1770.2,1769.9,5.64983554]
[1746032036386,9.44243478,1770.2,1770.0,0.12239023]
[1746032036573,3.79335558,1770.2,1770.0,0.12239023]
[1746032036964,0.37933556,1770.1,1770.0,0.12239023]
[1746032037659,0.79335558,1770.2,1770.0,5.77210774]
[1746032037838,3.7773,1770.3,1770.0,5.77210774]
[1746032038046,3.7773,1770.3,1770.0,5.77187914]
[1746032039075,9.42606882,1770.3,1770.0,5.77187914]
[1746032040244,3.7773,1770.3,1770.0,5.77187914]
[1746032040755,3.0,1770.3,1770.1,5.64936554]
[1746032040950,9.63551931,1770.3,1770.2,0.12208532]
[1746032041140,9.63551931,1770.3,1769.9,11.29969996]
[1746032041650,5.64939833,1770.1,1770.0,0.12208532]
[1746032041849,5.64939833,1770.1,1769.8,6.45086925]
[1746032042144,6.40769833,1770.1,1769.9,0.12159752]
[1746032042358,0.64076983,1770.0,1769.8,5.65026925]
[1746032042770,0.64076983,1770.0,1769.9,0.12159752]
[1746032043053,0.64076983,1770.0,1769.7,6.46605404]
[1746032043054,5.65013846,1769.9,1769.6,6.43558453]
[1746032043275,8.65047951,1769.8,1769.7,0.12159752]
[1746032043477,8.65035597,1769.8,1769.7,0.12159752]
[1746032043797,4.43004944,1769.8,1769.7,0.12159752]
[1746032043959,4.43004944,1769.8,1769.5,5.65117918]
[1746032044160,4.43004944,1769.8,1769.6,0.12159752]
[1746032044572,8.65067525,1769.7,1769.6,0.12159752]
[1746032044787,5.65149264,1769.5,1769.1,5.65239926]
[1746032044981,6.78175523,1769.5,1769.2,0.12452501]
[1746032045162,1.13026259,1769.5,1769.3,5.65193207]
[1746032045362,1.13026259,1769.5,1769.0,0.83971891]
[1746032045363,6.78159359,1769.5,1769.4,0.12452501]
[1746032045568,9.78157652,1769.5,1769.2,5.6522254]
[1746032045960,9.78157652,1769.5,1769.3,0.12452501]
[1746032046562,9.78157652,1769.5,1769.1,5.65238223]
[1746032046796,0.97815765,1769.4,1769.2,0.12452501]
[1746032047093,0.97815765,1769.4,1769.1,5.65236152]
[1746032047289,0.97815765,1769.4,1769.3,0.12452501]
[1746032047790,8.65133624,1769.5,1769.3,0.12452501]
[1746032048103,9.45683332,1769.4,1769.3,0.12452501]
[1746032048795,9.45683332,1769.4,1769.1,5.65236152]
[1746032048995,3.8052,1769.4,1769.2,0.12452501]
[1746032049194,3.8052,1769.4,1769.1,5.65236152]
[1746032049386,4.79336716,1769.4,1769.2,0.12452501]
[1746032049575,4.79336716,1769.4,1769.2,5.65226066]
[1746032049778,4.79336716,1769.4,1769.3,0.12452501]
[1746032050178,4.79336716,1769.4,1769.2,5.65222219]
[1746032050377,4.79336716,1769.4,1769.3,0.12977135]
[1746032050894,0.98816716,1769.4,1769.3,5.78172409]
[1746032051101,3.7592,1769.6,1769.3,5.78152341]
[1746032051278,3.0,1769.6,1769.3,6.53222341]
[1746032051869,8.65104462,1769.6,1769.3,6.53222341]
[1746032052499,8.65104462,1769.6,1769.3,0.12977135]
[1746032053015,14.30234373,1769.6,1769.3,0.12977135]
[1746032053212,3.0,1769.4,1769.3,0.12977135]
[1746032053785,3.0,1769.4,1769.2,5.65226619]
[1746032054117,3.0,1769.4,1769.3,0.12977135]
[1746032055373,3.0,1769.4,1769.1,6.41271301]
[1746032055602,3.0,1769.4,1769.2,0.12977135]
[1746032055799,4.0081663,1769.4,1769.2,5.65226467]
[1746032056103,4.0081663,1769.4,1769.3,0.12977135]
[1746032056508,4.0081663,1769.4,1769.2,5.65227216]
[1746032056708,4.0081663,1769.4,1769.3,0.12977135]
[1746032056709,3.0,1769.4,1769.3,0.12977135]
[1746032057813,1.43023437,1769.5,1769.3,5.78172409]
[1746032057970,3.0,1769.6,1769.3,5.78172409]
[1746032058174,8.65101615,1769.6,1769.3,5.78172409]
[1746032058703,8.65101615,1769.6,1769.3,0.12977135]
[1746032059730,6.35782555,1769.6,1769.3,0.12977135]
[1746032060020,12.80075887,1769.4,1768.5,6.84107696]
[1746032060185,5.65328049,1768.9,1768.6,0.11963749]
[1746032060379,6.44439717,1769.0,1768.6,5.77376061]
[1746032060583,3.7913,1769.0,1768.7,5.65381948]
[1746032060776,3.0,1769.0,1768.7,5.6537311]
[1746032061117,3.0,1769.1,1768.8,6.56416882]
[1746032062122,3.0,1769.1,1768.8,6.56404879]
[1746032062321,8.65204912,1769.3,1768.9,5.65299903]
[1746032062526,9.44084912,1769.3,1768.9,5.65298462]
[1746032062824,9.44084912,1769.3,1769.0,0.11963749]
[1746032063025,5.65259171,1769.1,1769.0,0.11963749]
[1746032063226,6.59652823,1769.2,1768.8,6.44454121]
[1746032063389,6.59652823,1769.2,1768.9,0.11963749]
[1746032065726,6.59652823,1769.2,1768.9,5.77285499]
[1746032065927,6.59652823,1769.2,1768.9,0.11963749]
[1746032067014,0.94408491,1769.2,1768.9,0.11963749]
[1746032067327,0.94408491,1769.2,1768.9,5.77274287]
[1746032067823,6.59653539,1769.2,1768.9,0.11963749]
[1746032068028,6.59653539,1769.2,1768.9,5.77283807]
[1746032069229,0.94408491,1769.2,1768.9,5.77283807]
[1746032069926,6.59635807,1769.2,1768.9,5.77283807]
[1746032071091,3.0,1769.3,1769.0,0.8184]
[1746032071396,6.45461486,1769.5,1769.1,5.77114653]
[1746032071607,3.0,1769.4,1769.1,5.77114653]
[1746032072026,8.65172211,1769.4,1769.1,0.11875188]
[1746032072207,8.65172211,1769.4,1769.1,5.77130738]
[1746032072409,9.59722432,1769.4,1769.1,0.11875188]
[1746032073943,15.24914725,1769.4,1769.1,0.11875188]
[1746032074226,12.95515855,1769.4,1769.1,0.11875188]
[1746032075535,5.65203556,1769.3,1769.1,0.11875188]
[1746032076335,12.9551846,1769.4,1769.1,0.11875188]
[1746032076636,1.29551846,1769.3,1769.1,0.11875188]
[1746032077338,6.94748733,1769.3,1769.1,0.11875188]
[1746032077503,0.8157,1769.2,1769.1,0.11875188]
[1746032079923,13.7722846,1769.4,1769.1,0.11875188]
[1746032080337,10.41445905,1769.4,1769.1,0.11875188]
[1746032080542,1.04144591,1769.3,1769.1,5.77134345]
[1746032080724,10.41445905,1769.4,1769.1,5.77134345]
[1746032081474,0.42169185,1769.7,1769.4,5.65141787]
[1746032081671,7.85528847,1769.8,1769.5,5.77016931]
[1746032081827,5.65077579,1769.7,1769.5,0.11886777]
[1746032082333,3.0,1769.7,1769.5,0.11886777]
[1746032082541,6.42523903,1769.8,1769.5,0.11886777]
[1746032082746,3.0,1769.7,1769.5,0.11886777]
[1746032082943,8.65080575,1769.7,1769.5,0.11886777]
[1746032083151,0.86508058,1769.6,1769.5,0.11886777]
[1746032083363,1.64418058,1769.6,1769.5,0.11886777]
[1746032083820,1.64418058,1769.6,1769.3,5.65172832]
[1746032084033,6.43018768,1769.6,1769.4,0.11886777]
[1746032084234,0.7791,1769.6,1769.4,0.11886777]
[1746032084683,8.65080575,1769.7,1769.4,0.11886777]
[1746032084876,12.22076436,1770.5,1769.4,0.11886777]
[1746032084877,5.64727971,1770.8,1769.7,5.65067525]
[1746032085076,6.21199798,1770.8,1770.3,6.40541564]
[1746032085242,3.0,1770.7,1770.4,5.76475816]
[1746032086190,3.0,1770.7,1770.4,11.41298721]
[1746032086352,3.0,1770.7,1770.5,5.64807137]
[1746032086536,0.56472101,1770.8,1770.5,5.64807137]
[1746032086741,6.21192837,1770.8,1770.6,0.11326046]
[1746032086938,3.0,1770.7,1770.6,0.11326046]
[1746032087178,3.0,1770.7,1770.4,5.64828769]
[1746032087687,3.0,1770.7,1770.5,0.11326046]
[1746032087977,3.56472101,1770.8,1770.5,0.11326046]
[1746032088163,9.21190049,1770.8,1770.5,5.76125693]
[1746032088477,9.20965557,1770.8,1770.5,5.76125693]
[1746032089434,5.64752269,1770.7,1770.5,0.11326046]
[1746032089641,9.20965557,1770.8,1770.5,0.11326046]
[1746032090374,9.20965557,1770.8,1770.5,5.76135428]
[1746032090535,0.56247609,1770.8,1770.5,5.64809382]
[1746032091267,3.0,1770.7,1770.4,7.94821902]
[1746032091768,3.0,1770.7,1770.5,5.64811641]
[1746032091947,3.0,1770.7,1770.4,7.94821902]
[1746032092136,0.8311,1770.9,1770.4,7.94821902]
[1746032092339,3.0,1770.7,1770.4,13.59648405]
[1746032092565,3.0,1770.7,1770.4,7.94821902]
[1746032092780,3.0,1770.7,1770.4,13.59642797]
[1746032093377,3.0,1770.7,1770.4,13.59642766]
[1746032093571,3.0,1770.7,1770.4,7.94820895]
[1746032094080,3.0,1770.7,1770.5,5.64796048]
[1746032096284,3.0,1770.7,1770.4,7.94820895]
[1746032096285,3.0,1770.7,1770.4,5.64820895]
[1746032096440,3.0,1770.7,1770.4,11.29650163]
[1746032096884,3.0,1770.7,1770.4,5.64820895]
[1746032097095,3.0,1770.7,1770.4,11.2964366]
[1746032097382,3.0,1770.7,1770.5,5.64809281]
[1746032098887,3.0,1770.7,1770.4,5.64820895]
[1746032099132,3.8311,1770.9,1770.7,5.64726151]
[1746032099281,3.8311,1770.9,1770.6,5.647803]
[1746032099483,9.47809788,1770.9,1770.5,5.64796291]
[1746032099828,9.47809788,1770.9,1770.5,5.64791607]
[1746032100318,3.0,1770.9,1770.6,5.64760341]
[1746032101289,3.0,1770.7,1770.4,0.8059]
[1746032101495,3.0,1770.7,1770.4,6.45424331]
[1746032101691,8.64766883,1770.7,1770.4,0.8059]
[1746032101896,8.64757063,1770.7,1770.4,6.45412418]
[1746032102099,3.0,1770.7,1770.4,6.45412418]
[1746032102299,3.0,1770.7,1770.5,5.64811587]
[1746032103243,3.0,1770.7,1770.4,6.45412418]
[1746032103411,8.64752676,1770.7,1770.4,6.45412418]
[1746032103611,3.0,1770.7,1770.4,6.45412418]
[1746032105537,3.0,1770.7,1770.4,12.10236724]
[1746032105740,8.64750106,1770.7,1770.4,6.45412418]
[1746032105936,3.0,1770.7,1770.4,6.45412418]
[1746032106241,3.0,1770.7,1770.5,5.64803588]
[1746032107250,3.0,1770.7,1770.6,5.647803]
[1746032107452,3.0,1770.7,1770.5,5.6479305]
[1746032107746,0.94603933,1770.9,1770.4,0.8059]
[1746032107916,9.59293653,1770.9,1770.6,5.64752646]
[1746032108440,15.24002929,1770.9,1770.5,5.64800959]
[1746032109044,3.0,1770.7,1770.5,5.64800959]
[1746032109337,3.0,1770.7,1770.6,2.3]
[1746032109701,3.0,1770.7,1770.6,7.947803]
[1746032110140,3.0,1770.7,1770.6,2.3]
[1746032110868,3.94603933,1770.9,1770.6,7.947803]
[1746032111065,0.8137,1771.0,1770.7,5.64748404]
[1746032111215,5.64624546,1771.1,1770.8,5.64706608]
[1746032111762,3.0,1771.0,1770.8,5.64706608]
[1746032112351,6.47698903,1771.6,1771.2,5.64571321]
[1746032112523,6.47698903,1771.6,1771.3,5.64532882]
[1746032112524,0.8322,1771.6,1771.3,5.64532882]
[1746032112723,3.0,1771.5,1771.2,6.40657566]
[1746032112979,3.0,1771.5,1771.3,5.64554086]
[1746032113339,3.0,1771.5,1771.2,6.40657566]
[1746032113666,6.47682705,1771.6,1771.2,6.40657566]
[1746032113862,3.0,1771.5,1771.3,5.64543927]
[1746032114102,3.0,1771.5,1771.3,5.64543132]
[1746032114557,3.0,1771.5,1771.2,6.40662474]
[1746032115061,3.0,1771.5,1771.2,0.7609]
[1746032115274,8.64503529,1771.5,1771.3,2.3]
[1746032115454,8.64503529,1771.5,1771.2,0.7609]
[1746032115965,8.64503529,1771.5,1771.2,3.0609]
[1746032117041,3.0,1771.5,1771.2,8.70663447]
[1746032117907,8.6449807,1771.5,1771.2,8.70663447]
[1746032118566,8.6449807,1771.5,1771.2,3.0609]
[1746032118765,5.64525819,1771.4,1771.2,3.0609]
[1746032118932,14.2901644,1771.5,1771.2,3.0609]
[1746032119335,0.8031,1771.4,1770.8,6.4784194]
[1746032119655,5.64608885,1771.2,1770.8,6.47846244]
[1746032119953,5.6464453,1771.1,1770.8,3.1314]
[1746032120150,5.6464453,1771.1,1770.8,8.77855577]
[1746032120553,5.64598181,1771.2,1770.8,6.47855577]
[1746032120756,11.2921156,1771.2,1770.8,6.47839529]
[1746032121126,5.64598181,1771.2,1770.8,6.47839529]
[1746032121774,8.64574468,1771.3,1770.9,5.64656385]
[1746032122209,5.64598773,1771.2,1770.9,5.64656385]
[1746032123502,14.29158697,1771.3,1770.9,5.64656385]
[1746032123710,8.64574468,1771.3,1770.9,5.64656385]
[1746032124603,5.6459163,1771.2,1770.9,5.64656385]
[1746032124780,8.64574468,1771.3,1770.9,5.64656385]
[1746032125181,5.64590096,1771.2,1770.9,5.64656385]
[1746032125406,8.64574468,1771.3,1770.9,5.64656385]
[1746032125596,14.29161026,1771.3,1770.9,5.64656385]
[1746032126705,14.29154577,1771.3,1770.9,5.64656385]
[1746032126907,8.64574468,1771.3,1770.9,5.64656385]